Cogmind - Beta 14 @@@ ROGUE MODE // 2024.12.07 @ 16:31:05 Player: lavinia Result: Destroyed by G-34 Mercenary with Small Laser Performance ------------- Evolutions (0) 0 Regions Visited (1) 200 Robots Destroyed (19) 95 Value Destroyed (452) 452 Prototype IDs (3) 60 Alien Tech Used (0) 0 Bonus (0) 0 TOTAL SCORE: 807 Bonus ------- None Cogmind --------- Core Integrity 0/250 Matter 300/300 Energy 100/100 System Corruption 1% Temperature Cool (6) Movement Walking (190) Ox1 Location -10/Materials Parts ------- > --- POWER (1) -------- (None) > --- PROPULSION (2) --- Aluminum Leg > --- UTILITY (2) ------ Medium Storage Unit Transport Network Coupler > --- WEAPON (2) ------- Light Assault Rifle Hammer > --- INVENTORY (10) --- Grenade Launcher Grenade Launcher Peak State ------------ > --- POWER ------------ Light Ion Engine > --- PROPULSION ------- Wheel Compact Wheel > --- UTILITY ---------- Medium Storage Unit Transport Network Coupler > --- WEAPON ----------- Medium Laser Assault Rifle > --- INVENTORY -------- Light Assault Rifle [Rating: 7] Favorites ----------- Power Light Ion Engine Engine Light Ion Engine Propulsion Compact Wheel Leg Aluminum Leg Wheel Compact Wheel Utility Transport Network Coupler Storage Medium Storage Unit Processor Transport Network Coupler Weapon Medium Laser Energy Gun Medium Laser Ballistic Gun Assault Rifle Impact Weapon Hammer Build | -11 -10 ------- Run | Yrd Mat Slots Evolved . | . . Power . | . . Propulsion . | . . Utility . | . . Weapon . | . . Parts Attached 14 | 5 9 Power 1 | 1 . Engine 1 | 1 . Core . | . . Reactor . | . . Propulsion 6 | 2 4 Treads . | . . Leg 3 | . 3 Wheel 3 | 2 1 Hover . | . . Flight . | . . Utility 2 | . 2 Device . | . . Storage 1 | . 1 Processor 1 | . 1 Hackware . | . . Protection . | . . Artifact . | . . Weapon 5 | 2 3 Energy Gun 2 | 1 1 Energy Cannon . | . . Ballistic Gun 2 | 1 1 Ballistic Cannon . | . . Launcher . | . . Special Weapon . | . . Impact Weapon 1 | . 1 Slashing Weapon . | . . Piercing Weapon . | . . Special Melee Weapon . | . . Unidentified Prototypes . | . . Parts Lost 7 | . 7 Power 1 | . 1 Propulsion 4 | . 4 Utility . | . . Weapon 2 | . 2 Highest Loss Streak 3 | . 3 To Critical Strikes . | . . Average Slot Usage (%) 91 | . 91 Engine 13 | . 13 Leg 6 | . 6 Wheel 15 | . 15 Storage 13 | . 13 Processor 13 | . 13 Energy Gun 11 | . 11 Ballistic Gun 14 | . 14 Impact Weapon 2 | . 2 Peak Build Rating 7 | 5 7 Average Rating 6 | 3 6 On Entrance 2 | . 5 Naked Turns . | . . Heaviest Build 17 | 7 17 Greatest Support 26 | 26 26 Greatest Overweight (x) 5 | . 5 Average Overweight (x) . | . . Largest Inventory Capacity 10 | 5 10 Average Capacity 9 | 5 9 Most Carried 2 | 1 2 Average Carried . | . . Final Capacity 10 | 5 10 Final Carried 2 | 1 2 Class Distribution -------------------- 100% | Mutant Dominant Class ---------------- Mutant | -10/Materials Resources | -11 -10 ----------- Run | Yrd Mat Matter Collected 411 | 228 183 Remotely . | . . Salvage Created 686 | . 686 Parts 41 | . 41 Haulers Intercepted 2 | . 2 Recyclers Shooed . | . . Parts Field Recycled . | . . Retrieved Matter . | . . Parts Self-Destructed . | . . Prevented . | . . Kills | -11 -10 ------- Run | Yrd Mat Combat Hostiles Destroyed 14 | . 14 Melee 4 | . 4 Guns 9 | . 9 Classes Destroyed 5 | . 5 Worker 2 | . 2 Hauler 2 | . 2 Operator 1 | . 1 Swarmer 3 | . 3 Grunt 11 | . 11 Best Kill Streak 5 | . 5 Combat Bots Only 3 | . 3 Max Kills in Single Turn 2 | . 2 Gunslinging 1 | . 1 Exploded . | . . Melee 1 | . 1 Uniques/NPCs Destroyed . | . . Combat | -11 -10 -------- Run | Yrd Mat Hostile Shots Fired 103 | . 103 Missed 27 | . 27 Damage Taken 821 | . 821 Core 251 | . 251 Absorbed by Shields . | . . Core Remaining (%) 100 | 100 . Volleys Fired 36 | . 36 Largest 2 | . 2 Hottest 70 | . 70 Shots Fired 70 | . 70 Gun 70 | . 70 Cannon . | . . Launcher . | . . Special . | . . Kinetic 36 | . 36 Thermal 34 | . 34 Explosive . | . . Electromagnetic . | . . Robot Hit Streak 14 | . 14 Robot Miss Streak 3 | . 3 Penetration Max . | . . Secondary Targets 3 | . 3 Max Gunslinging Chain 1 | . 1 Shots Hit Robots 67 | . 67 Core Hits 25 | . 25 Critical Kills . | . . Critical Parts Destroyed 1 | . 1 Critical Strikes 3 | . 3 Burn 2 | . 2 Smash 1 | . 1 Melee Attacks 16 | . 16 Impact 16 | . 16 Slashing . | . . Piercing . | . . Sneak Attacks 2 | . 2 Combat Hostiles . | . . Follow-up Attacks . | . . Damage Inflicted 1034 | . 1034 Guns 685 | . 685 Cannons . | . . Explosions . | . . Melee 349 | . 349 Ramming . | . . Kinetic 330 | . 330 Thermal 355 | . 355 Explosive . | . . Electromagnetic . | . . Impact 349 | . 349 Slashing . | . . Piercing . | . . Highest Corruption 1 | . 1 Average Corruption 1 | . 1 Corruption Purged . | . . Corruption Blocked . | . . Overload Shots . | . . Overflow Damage 44 | . 44 Projectiles . | . . Explosions . | . . Melee 44 | . 44 Knockbacks 1 | . 1 Impact 1 | . 1 Kinetic . | . . Secondary . | . . Self-Inflicted Damage . | . . Shots . | . . Rammed . | . . Targets Rammed . | . . Kicked . | . . Crushed . | . . Highest Temperature 249 | . 249 Average Temperature 72 | . 72 Received Heat Transfer 426 | . 426 Siege Activations . | . . Robots Corrupted 1 | . 1 Combat Hostiles . | . . Parts Fried . | . . Impact Corruptions 2 | . 2 Robots Melted 1 | . 1 Combat Hostiles 1 | . 1 Parts Melted 2 | . 2 Heat Transferred 1184 | . 1184 Parts Sabotaged . | . . Parts Stolen . | . . Parts Stripped . | . . Power Chain Reactions . | . . Alert | -11 -10 ------- Run | Yrd Mat Peak Influence 324 | . 324 Initial . | . . Average 163 | . 172 Maximum Alert Level 1 | . 1 Low Security (%) 69 | 100 67 Level 1 30 | . 32 Level 2 . | . . Level 3 . | . . Level 4 . | . . Level 5 . | . . High Security . | . . Max Security . | . . Squads Dispatched 5 | . 5 Investigation 2 | . 2 Extermination . | . . Reinforcement 3 | . 3 Assault . | . . Garrison . | . . Intercept . | . . Searches Triggered . | . . Construction Impeded . | . . Haulers Reinforced . | . . Active Scanning Responses . | . . Cargo Convoy Interrupts . | . . Stealth | -11 -10 --------- Run | Yrd Mat Distress Signals 1 | . 1 Communications Jammed . | . . Distress Signals . | . . Times Spotted 22 | . 22 Peak Tracking Total 5 | . 5 Tactical Retreats 2 | . 2 Traps | -11 -10 ------- Run | Yrd Mat Traps Triggered . | . . Indirectly . | . . Trap Hack Attempts . | . . Triggered . | . . Disarmed . | . . Reprogrammed . | . . Reused . | . . Traps Extracted . | . . Installed . | . . Triggered . | . . Machines | -11 -10 ---------- Run | Yrd Mat Machines Disabled . | . . Max in Single Turn . | . . Machines Repaired . | . . Machines Dismantled . | . . Machines Sabotaged . | . . Overloaded Fab Kills . | . . Hacking | -11 -10 --------- Run | Yrd Mat Machines Accessed 4 | . 4 Terminals 3 | . 3 Fabricators . | . . Repair Stations 1 | . 1 Recycling Units . | . . Scanalyzers . | . . Garrison Access . | . . Total Hacks 11 | . 11 Successful 3 | . 3 Failed 8 | . 8 Catastrophic 3 | . 3 Database Lockouts . | . . Manual 4 | . 4 Terminals 9 | . 9 Fabricators . | . . Repair Stations 2 | . 2 Recycling Units . | . . Scanalyzers . | . . Garrison Access . | . . Terminal Hacks 3 | . 3 Prototype ID Bank 2 | . 2 Terminal Index 1 | . 1 Fabricator Hacks . | . . Repair Station Hacks . | . . Recycling Unit Hacks . | . . Scanalyzer . | . . Garrison Access Hacks . | . . Unauthorized Hacks . | . . Terminals . | . . Fabricators . | . . Repair Stations . | . . Recycling Units . | . . Scanalyzers . | . . Garrison Access . | . . Data Cores Recovered . | . . Used . | . . Hacking Detections 4 | . 4 Full Trace Events 4 | . 4 Feedback Events 1 | . 1 Corruption 1 | . 1 Feedback Blocked . | . . Robot Schematics Acquired . | . . Robots Built . | . . Authchips . | . . Time . | . . Total Robot Build Rating . | . . Part Schematics Acquired . | . . Parts Built . | . . Authchips . | . . Time . | . . Total Part Build Rating . | . . Parts Repaired . | . . Time . | . . Parts Recycled . | . . Recycled Matter . | . . Retrieved Matter . | . . Retrieved Components . | . . Parts Scanalyzed . | . . Part Schematics Acquired . | . . Parts Damaged . | . . Bothacking | -11 -10 ------------ Run | Yrd Mat Used RIF Installer . | . . Robots Hacked . | . . Non-combat . | . . Combat . | . . Robot Hacks Applied . | . . Relay Couplers Released . | . . Fabnet Peak Effective % . | . . Robots Rewired . | . . Allies Hacked . | . . Hacks Repelled . | . . Allies | -11 -10 -------- Run | Yrd Mat Total Allies . | . . Largest Group . | . . Highest-Rated Group . | . . Highest-Rated Ally . | . . Total Orders . | . . Ally Attacks . | . . Total Damage . | . . Kills . | . . Allies Corrupted . | . . Allies Melted . | . . Intel | -11 -10 ------- Run | Yrd Mat Robot Analysis Total . | . . Derelict Logs Recovered . | . . Drone Launches . | . . Drone Recoveries . | . . Exploration | -11 -10 ------------- Run | Yrd Mat Turns Passed 668 | 35 633 Spaces Moved 400 | 31 369 Core 5 | 1 4 Treads . | . . Legs 86 | . 86 Wheels 309 | 30 279 Hover . | . . Flight . | . . Fastest Speed 50 | 50 90 Average Speed 104 | 87 105 Slowest Speed 300 | 90 300 Overloaded Moves . | . . Propulsion Burnouts . | . . Robots Hopped . | . . Cave-ins Triggered . | . . Exploration Rate (%) 29 | 4 55 Regions Visited 1 Branch Regions . Pre-discovered Areas . | . . Known Exits Taken . | . . Unknown Exits Taken 1 | 1 . Scrap Searched . | . . Spaces Dug . | . . Terrain Destroyed . | . . Melee . | . . Projectile . | . . AOE . | . . Terrain Rammed . | . . Walls Destroyed . | . . Machines Disabled . | . . Actions | -11 -10 --------- Run | Yrd Mat Total 549 | 36 513 Wait 80 | . 80 Move 399 | 30 369 Hop . | . . Pick Up 3 | 1 2 Fast Attach 12 | 5 7 Attach 1 | . 1 Detach . | . . Swap 1 | . 1 Drop 1 | . 1 Fire 36 | . 36 Melee 16 | . 16 Ram . | . . Kick . | . . Crush . | . . Escape Stasis . | . . Rewire . | . . Trap . | . . Miscellaneous . | . . Route ------- -11/Scrapyard -10/Materials (discovered 1 exit: [*Mat]) History --------- Turn | Location | Event 14 | -11/Scrapyard | Discovered new exit (range 16) 36 | -11/Scrapyard | Entered Materials 306 | -10/Materials | Build established: Mutant 536 | -10/Materials | Lost 3 parts (1n2w) 543 | -10/Materials | Discovered new exit (range 16) 630 | -10/Materials | Core integrity fell below 50% 651 | -10/Materials | Core integrity fell below 20% 669 | -10/Materials | Destroyed by G-34 Mercenary with Small Laser Last Messages --------------- K-01 Serf collects debris. Sneak attack on K-01 Serf. K-01 Serf suffers critical hit (Smash). Destroyed Lgt. Ion Engine. Destroyed Wheel. K-01 Serf system corrupted by crushing effect. G-34 Mercenary knocked back. G-34 Mercenary destroyed. Lgt. Ion Engine destroyed. G-47 Trooper destroyed. Aluminum Leg destroyed. G-34 Mercenary destroyed. K-01 Serf collects debris. O-16 Technician: "IFF HANDSHAKE FAILED. SECURING TERMINAL." K-01 Serf collects debris. ALERT: Hostiles spotted, dispatching reinforcements to Terminal M004. K-01 Serf collects debris. Map ----- +----------------------------------------------------+ | ???????????????????????????? ???????# | | ???????????????????????????? ???????# | | ???????????????????????????? ???????# ## | | ????????????????????????????# #???????##/#?? | | ????????????????????????????# #######??????? | | ????????????????????????????# # #??????? | | ????????????????????????????# # #??????? | | ????????????????????????????# #//! #??????? | | ????????????????????????????# #/! #??????? | | ????????????????????????????# #[! #??????? | | ????????????????????????????# # #??????? | | ?????????????# ?????????????# # """ #??????? | | ?????????????# ###+######## !# """ #??????? | | ?????????????# [+%""" #??????? | | ?????????????# =# #??????? | | ?????????????# ############## | | ????????????????####### | | ??????????????????????# | | ??????????????????????+ ! | | ??????????????????????#######!! """ | | ??????????????????????????#""! """ | | ??????????????????????????#"T! """ ###### | | ??????????????????????????#"" #????? | | ?????????+####+############## #????? | | ?????? k % #????? | | ???????# @%= #????? | | ???????????## ### ##g##########"Y"# #????? | | ?????????????????#???#=g== ##"""# #????? | | ?????????????????????#!!% ###### #????? | | ?????????????????????#[== "T" #????# #????? | | ?????????????????????# """ #????# #????? | | ?????????????????????###########????# ?????? | | ???????????????????????????????????? ?????? | | ???????????????????????????????????? < ?????? | | ?????????????????????????????????????????????? | | ?????????????????????????????????????????????? | | ?????????????????????????????????????????????? | | ?????????????????????????????????????????????? | | ?????????????????????????????????????????????? | | ?????????????????????????????????????????????? | | ?????????????????????????????????????????????? | | ?????????????????????????????????????????????? | | ?????????????????????????????????????????????? | | | | | | | | | | | | | | | +----------------------------------------------------+ Best States ------------- Heat Dissipation 25 Energy Generation 10 Energy Capacity 125 Matter Stores 300 Matter Capacity 300 Sight Range 16 Terrain Scan Density 10 Evasion (%) 55 Item Schematics ----------------- None Robot Schematics ------------------ None Fabricated ------------ Nothing Alien Tech Used ----------------- None Achievements -------------- None Challenges ------------ None Game ------ Seed NetworkHybridDisintegrator Manual? 0 Play Time 00:07:30 Cumulative 9.9 hours Start 2024.12.07 @ 16:24:49 End 2024.12.07 @ 16:31:05 Sessions 1 Manual Loads 0 Difficulty Rogue Special Mode None Game No. 17 Rogue 17 Adventurer 0 Explorer 0 Win Type - Total 0 Types 0/0/0/0/0/0/0/0/0 Lore% 8 Gallery% 9 Achievement% 12 Wizard Run 0 Options --------- Layout 1 ASCII 0 Keyboard 0 Movement Numpad Keybinds 0 Fullscreen 2 Font 24/Smallcaps Map View 50x35 Zoom Use 0% Tactical HUD 0 Map Filters NONE Filters NONE Steam 1 RUN: 2f8f2365-e7f9-40eb-a9cd-43c441f3a5f5